fUSD/lending_fUSD_20251230
["ID","MTS","AMOUNT","RATE_DAILY","PERIOD"]
[400111084,1767129038269,-1424.06993233,0.00016499,2]
[400111085,1767129038324,-1038.15817152,0.00016499,2]
[400111086,1767129038381,-865.39433061,0.00016499,2]
[400111087,1767129038437,-5808.88087378,0.00016499,2]
[400111088,1767129038449,-1000.0,0.00016499,2]
[400111161,1767129040258,-38683.1044579,0.00016499,2]
[400111162,1767129040270,-4733.18646971,0.00016499,2]
[400111163,1767129040284,-843.07199268,0.00016499,2]
[400111164,1767129040296,-2544.83297384,0.00016499,2]
[400111165,1767129040309,-3782.47096067,0.00016499,2]
[400111166,1767129040321,-1134.21112236,0.00016499,2]
[400111167,1767129040333,-11762.66432023,0.00016499,2]
[400111168,1767129040585,-14918.75089215,0.00016499,2]
[400111169,1767129040598,-542.88783044,0.00016499,2]
[400111170,1767129040610,-1847.72,0.00016499,2]
[400111171,1767129040622,-543.74,0.00016499,2]
[400111172,1767129040637,-50199.60562156,0.00016499,2]
[400111173,1767129040650,-707.12359549,0.00016499,2]
[400111174,1767129040663,-1907.45,0.00016499,2]
[400111175,1767129040675,-1201.2,0.00016499,2]
[400111180,1767129043966,-273.1,0.00016479,2]
[400111181,1767129043981,-107.19904695,0.00016479,2]
[400111182,1767129043991,-487.61912933,0.00016499,2]
[400111183,1767129044767,-657.2440584,0.00016499,2]
[400111184,1767129044779,-845.30631861,0.00016499,2]
[400111185,1767129044822,-255.80595542,0.00016499,2]
[400111186,1767129044879,-276.59870262,0.00016499,2]
[400111187,1767129046159,-2620.37911309,0.00016499,2]
[400111188,1767129046219,-1347.51310897,0.00016499,2]
[400111189,1767129046231,-3059.48992489,0.00016499,2]
[400111190,1767129046243,-548.54278113,0.00016499,2]
[400111191,1767129046257,-2180.0,0.00016499,2]
[400111192,1767129046330,-4350.57757302,0.00016499,2]
[400111193,1767129046343,-25000.000006,0.00016499,2]
[400111198,1767129125890,339.18398522,0.0003,120]
[400111199,1767129197296,-12898.58,0.00015882,2]
[400111200,1767129197321,-154.3,0.00016028,2]
[400111201,1767129197343,-151.0,0.00016178,2]
[400111202,1767129197366,-151.0,0.00016178,2]
[400111203,1767129197389,-151.0,0.00016223,2]
[400111204,1767129197412,-151.0,0.00016223,2]
[400111205,1767129197435,-151.0,0.00016241,2]
[400111206,1767129197459,-151.0,0.00016241,2]
[400111207,1767129197486,-151.0,0.00016241,2]
[400111208,1767129197510,-151.0,0.00016395,2]
[400111209,1767129197533,-151.0,0.00016396,2]
[400111210,1767129197562,-132501.7443,0.00016398,2]
[400111211,1767129197589,-500.0,0.00016398,2]
[400111212,1767129197615,-500.0,0.00016398,2]
[400111213,1767129197641,-500.0,0.00016398,2]
[400111214,1767129197668,-500.0,0.00016398,2]
[400111215,1767129197692,-500.0,0.00016398,2]
[400111216,1767129197723,-500.0,0.00016398,2]
[400111217,1767129197750,-500.0,0.00016398,2]
[400111218,1767129197775,-500.0,0.00016398,2]
[400111219,1767129197800,-500.0,0.00016398,2]
[400111220,1767129197825,-500.0,0.00016398,2]
[400111221,1767129197852,-500.0,0.00016398,2]
[400111222,1767129197879,-454.24128161,0.00016398,2]
[400111223,1767129197906,-500.0,0.00016398,2]
[400111224,1767129197932,-500.0,0.00016398,2]
[400111225,1767129197962,-500.0,0.00016398,2]
[400111226,1767129197989,-500.0,0.00016398,2]
[400111227,1767129198016,-500.0,0.00016398,2]
[400111228,1767129198042,-500.0,0.00016398,2]
[400111229,1767129198067,-500.0,0.00016398,2]
[400111230,1767129198093,-500.0,0.00016398,2]
[400111231,1767129198119,-500.0,0.00016398,2]
[400111232,1767129198145,-500.0,0.00016398,2]
[400111233,1767129198171,-500.0,0.00016398,2]
[400111234,1767129198198,-500.0,0.00016398,2]
[400111235,1767129198225,-500.0,0.00016398,2]
[400111236,1767129198254,-500.0,0.00016398,2]
[400111237,1767129198281,-500.0,0.00016398,2]
[400111238,1767129198310,-500.0,0.00016398,2]
[400111239,1767129198336,-500.0,0.00016398,2]
[400111240,1767129198362,-500.0,0.00016398,2]
[400111241,1767129198387,-500.0,0.00016398,2]
[400111242,1767129198425,-500.0,0.00016398,2]
[400111243,1767129198456,-500.0,0.00016398,2]
[400111244,1767129198483,-500.0,0.00016398,2]
[400111245,1767129198510,-500.0,0.00016398,2]
[400111246,1767129198537,-500.0,0.00016398,2]
[400111247,1767129198564,-500.0,0.00016398,2]
[400111248,1767129198591,-500.0,0.00016398,2]
[400111249,1767129198619,-500.0,0.00016398,2]
[400111250,1767129198645,-500.0,0.00016398,2]
[400111251,1767129198670,-500.0,0.00016398,2]
[400111252,1767129198696,-500.0,0.00016398,2]
[400111253,1767129198722,-500.0,0.00016398,2]
[400111254,1767129198748,-500.0,0.00016398,2]
[400111255,1767129198774,-500.0,0.00016398,2]
[400111256,1767129198800,-500.0,0.00016398,2]
[400111257,1767129199120,-445.42412816,0.00016398,2]
[400111258,1767129199148,-500.0,0.00016398,2]
[400111259,1767129199172,-16205.7271,0.00016399,2]
[400111260,1767129199195,-2500.0,0.00016399,2]
[400111261,1767129199218,-4295.1545,0.00016399,2]
[400111262,1767129199242,-500.0,0.00016438,2]
[400111263,1767129199269,-500.0,0.00016438,2]
[400111264,1767129199293,-435.14021091,0.00016438,2]
[400111265,1767129199322,-3765.143,0.00016497,2]
[400111266,1767129199346,-405.751,0.00016497,2]
[400111267,1767129199375,-500.0,0.00016498,2]
[400111268,1767129199400,-24472.2967103,0.00016499,2]
[400111269,1767129199426,-380.29904695,0.00016549,2]
[400111270,1767129199452,-168.0,0.00016598,2]
[400111271,1767129199478,-380.29904695,0.00016619,2]
[400111272,1767129199503,-572.51510935,0.0001666,2]
[400111273,1767129199527,-380.29904695,0.0001669,2]
[400111274,1767129199551,-380.29904695,0.0001676,2]
[400111275,1767129199574,-474.74,0.00016772,2]
[400111276,1767129199598,-2072.2,0.00016786,2]
[400111277,1767129199622,-150.0,0.000168,2]
[400111278,1767129199647,-250.0,0.00016816,2]
[400111279,1767129199670,-250.0,0.00016816,2]
[400111280,1767129199693,-380.29904695,0.0001683,2]
[400111281,1767129199717,-500.0,0.00016873,2]
[400111282,1767129199740,-500.0,0.00016873,2]
[400111283,1767129199767,-500.0,0.00016873,2]
[400111284,1767129199791,-500.0,0.00016873,2]
[400111285,1767129199814,-172.44696873,0.000169,2]
[400111286,1767129199838,-380.29904695,0.000169,2]
[400111287,1767129199862,-437.24053426,0.000169,2]
[400111288,1767129199885,-221.73109336,0.000169,2]
[400111289,1767129199910,-993.2438405,0.000169,2]
[400111290,1767129199934,-163.18531184,0.000169,2]
[400111291,1767129199958,-178.97322544,0.000169,2]
[400111292,1767129199985,-896.62351214,0.000169,2]
[400111293,1767129200008,-480.02304414,0.000169,2]
[400111294,1767129200031,-214.50312532,0.000169,2]
[400111295,1767129200054,-151.0,0.000169,2]
[400111296,1767129200079,-974.6856971,0.00016903,2]
[400111297,1767129200103,-12007.733925,0.00016903,2]
[400111298,1767129200128,-48829.7222851,0.00016903,2]
[400111299,1767129200151,-9845.91722985,0.00016966,2]
[400111300,1767129200173,-150.0,0.00016973,2]
[400111301,1767129200200,-150.0,0.00016986,2]
[400111302,1767129200222,-150.0,0.00016986,2]
[400111303,1767129200250,-150.0,0.00016986,2]
[400111304,1767129200274,-150.0,0.00016986,2]
[400111305,1767129200299,-500.0,0.00016999,2]
[400111306,1767129200326,-177.10385684,0.00016999,2]
[400111307,1767129200351,-163.2812525,0.00016999,2]
[400111308,1767129200374,-464.59254184,0.00016999,2]
[400111309,1767129200398,-2946.0,0.00017,2]
[400111310,1767129200423,-426820.24093401,0.00017,2]
[400111312,1767129444732,167.78,0.00012481,2]
[400111313,1767129449203,1204.07,7.801e-05,2]
[400111314,1767129449569,1204.07,8.211e-05,2]
[400111315,1767129449667,1204.07,8.622e-05,2]
[400111316,1767129449874,1204.07,9.032e-05,2]
[400111317,1767129450092,1204.07,9.443e-05,2]
[400111318,1767129450337,1204.07,9.853e-05,2]
[400111319,1767129450754,1204.07,0.00010264,2]
[400111320,1767129450996,1204.07,0.00010674,2]
[400111321,1767129451229,1204.07,0.00011085,2]
[400111322,1767129451510,1204.07,0.00011496,2]
[400111323,1767129451725,1204.07,0.00011906,2]
[400111324,1767129451924,1204.07,0.00012317,2]
[400111325,1767129452223,1204.07,0.00012727,2]
[400111326,1767129452440,1204.07,0.00013138,2]
[400111327,1767129463932,-341.61754358,0.00013548,2]
[400111328,1767129465428,-267.97777114,0.00013548,2]
[400111329,1767129468174,-389.43570652,0.00013548,2]
[400111330,1767129808893,-211.47783118,0.00013548,2]
[400111331,1767129812439,-49.52216882,0.00013548,2]
[400111332,1767129812464,-142.3871495,0.00013548,2]
[400111333,1767129814827,-62.65182926,0.00013548,2]
[400111334,1767129814849,-111.19949565,0.00013699,2]
[400111335,1767129816708,-225.83067056,0.00013699,2]
[400111336,1767129885395,-167.75983379,0.00013699,2]
[400111337,1767129885428,-10.84513268,0.00013959,2]
[400111338,1767129886498,-272.64371643,0.00013959,2]
[400111339,1767129889030,-280.46390292,0.00013959,2]
[400111341,1767129958869,-184.30048708,0.00013959,2]
[400111345,1767130034449,-199.78588845,0.00013959,2]
[400111347,1767130035979,-184.35422528,0.00013959,2]
[400111355,1767130230652,-234.60399061,0.00013889,2]
[400111384,1767130232467,-149.53612339,0.00013889,2]
[400111385,1767130232478,-71.67664716,0.00013959,2]
[400111386,1767130232489,-1204.07,0.00014369,2]
[400111387,1767130232500,-166.66,0.000145,2]
[400111388,1767130232511,-1200.0,0.00014588,2]
[400111389,1767130232522,-300.0,0.00014588,2]
[400111390,1767130232533,-300.0,0.00014588,2]
[400111391,1767130232544,-792.75674882,0.00014589,2]
[400111392,1767130232560,-7682.77168342,0.00014589,2]
[400111393,1767130232573,-405.95789884,0.00014589,2]
[400111394,1767130232586,-3974.19366892,0.00014589,2]
[400111395,1767130232598,-151.76506094,0.00014706,2]
[400111396,1767130232609,-1204.07,0.0001478,2]
[400111397,1767130232621,-166.66,0.00014806,2]
[400111398,1767130232632,-1323.48,0.00014912,2]
[400111399,1767130232642,-427.54,0.00015085,2]
[400111400,1767130232653,-166.66,0.00015111,2]
[400111401,1767130232664,-500.0,0.00015188,2]
[400111402,1767130232675,-1204.07,0.00015191,2]
[400111403,1767130232685,-500.0,0.00015278,2]
[400111404,1767130232696,-150.0,0.00015288,2]
[400111405,1767130232708,-150.0,0.00015288,2]
[400111406,1767130232719,-150.00000001,0.00015288,2]
[400111407,1767130232730,-150.0,0.00015288,2]
[400111408,1767130232741,-151.93318278,0.00015288,2]
[400111409,1767130232751,-150.0,0.00015288,2]
[400111410,1767130232762,-150.0,0.00015288,2]
[400111411,1767130232773,-1.37500844,0.00015288,2]
[400111416,1767130237388,-148.62499156,0.00015288,2]
[400111417,1767130237398,-150.0,0.00015288,2]
[400111418,1767130237408,-150.0,0.00015288,2]
[400111419,1767130237417,-150.0,0.00015288,2]
[400111420,1767130237426,-150.0,0.00015288,2]
[400111421,1767130237435,-150.0,0.00015288,2]
[400111422,1767130237444,-150.0,0.00015288,2]
[400111423,1767130237455,-87.71794853,0.00015288,2]
[400111424,1767130237467,-63.42286811,0.00015288,2]
[400111425,1767130237476,-150.0,0.00015288,2]
[400111426,1767130237486,-300.0,0.00015355,2]
[400111427,1767130237501,-166.66,0.00015416,2]
[400111428,1767130237511,-200.0,0.00015473,2]
[400111429,1767130237520,-150.0,0.00015476,2]
[400111430,1767130237529,-150.0,0.00015571,2]
[400111431,1767130237539,-150.0,0.00015571,2]
[400111432,1767130237548,-175.37,0.00015596,2]
[400111433,1767130237562,-1204.07,0.00015601,2]
[400111434,1767130237572,-170.82,0.00015629,2]
[400111435,1767130237582,-98.56713189,0.00015665,2]
[400111436,1767130237595,-51.43286811,0.00015665,2]
[400111437,1767130237604,-166.66,0.00015721,2]
[400111438,1767130237613,-151.0,0.00015844,2]
[400111439,1767130237623,-151.0,0.00015844,2]
[400111441,1767130237636,-145.17539325,0.00015844,2]
[400111442,1767130237647,-5.82460675,0.00015844,2]
[400111443,1767130237656,-150.0,0.00015854,2]
[400111444,1767130237666,-150.0,0.00015854,2]
[400111445,1767130237675,-150.0,0.00015854,2]
[400111446,1767130237684,-150.0,0.00015854,2]
[400111447,1767130237693,-150.0,0.00015854,2]
[400111448,1767130237703,-200.0,0.00015874,2]
[400111449,1767130237712,-207.4,0.00015874,2]
[400111450,1767130237722,-215.0738,0.00015874,2]
[400111451,1767130237731,-38.99590008,0.00015874,2]
[400111453,1767130237743,-484.00000004,0.00015874,2]
[400111455,1767130237758,-30.64783795,0.00015874,2]
[400111457,1767130237767,-445.03102135,0.00015874,2]
[400111460,1767130239470,-54.96897865,0.00015874,2]
[400111461,1767130239480,-223.0315306,0.00015874,2]
[400111462,1767130239494,-189.97048699,0.00015874,2]
[400111463,1767130239526,-310.02951301,0.00015874,2]
[400111464,1767130239535,-231.28369723,0.00015874,2]
[400111465,1767130239545,-23.54204826,0.00015874,2]
[400111466,1767130239584,-476.45795174,0.00015874,2]
[400111467,1767130239595,-500.0,0.00015874,2]
[400111468,1767130239607,-417.63421782,0.00015874,2]
[400111483,1767130243296,-82.36578218,0.00015874,2]
[400111484,1767130243305,-206.40294359,0.00015874,2]
[400111485,1767130243318,-293.59705641,0.00015874,2]
[400111486,1767130243328,-500.0,0.00015874,2]
[400111487,1767130243343,-500.0,0.00015874,2]
[400111488,1767130243353,-500.0,0.00015874,2]
[400111489,1767130243363,-306.40294359,0.00015874,2]
[400111490,1767130243375,-193.59705641,0.00015874,2]
[400111491,1767130243385,-63.82134464,0.00015874,2]
[400111492,1767130243398,-186.17865536,0.00015874,2]
[400111493,1767130243408,-113.81134464,0.00015874,2]
[400111494,1767130244393,-386.18865536,0.00015874,2]
[400111495,1767130244403,-500.0,0.00015874,2]
[400111496,1767130244413,-275.22305332,0.00015874,2]
[400111510,1767130245432,-224.77694668,0.00015874,2]
[400111512,1767130245443,-500.0,0.00015874,2]
[400111513,1767130245453,-500.0,0.00015874,2]
[400111514,1767130245463,-620.0,0.00015874,2]
[400111515,1767130245474,-500.0,0.00015874,2]
[400111517,1767130245485,-500.0,0.00015874,2]
[400111519,1767130245499,-151.0,0.00015874,2]
[400111521,1767130245509,-151.76506094,0.00015927,2]
[400111523,1767130245520,-151.0,0.00015952,2]
[400111524,1767130245530,-151.0,0.00015952,2]
[400111525,1767130245540,-1346.98306814,0.00016,2]
[400111526,1767130245712,-3130.7621976,0.00016,2]
[400111527,1767130245722,-82516.1921981,0.00016,4]
[400111528,1767130245742,-70926.80271925,0.00016,4]
[400111529,1767130245752,-166.66,0.00016027,2]
[400111530,1767130245762,-150.0,0.00016043,2]
[400111531,1767130245771,-1680.0,0.00016047,2]
[400111532,1767130245782,-200.0,0.00016049,2]
[400111533,1767130245792,-150.0,0.00016137,2]
[400111534,1767130245802,-150.0,0.00016137,2]
[400111535,1767130245812,-566924.0233919,0.00016198,2]
[400111536,1767130245828,-291000.0,0.00016198,2]
[400111557,1767130921206,195.15034732,0.00030137,120]
[400111558,1767131032430,-999.0,0.0001524,3]
[400111559,1767131032451,-151.76506093,0.00015398,2]
[400111560,1767131032472,-153.34,0.00015427,2]
[400111561,1767131032492,-3540.90967533,0.00015485,2]
[400111562,1767131032513,-1000.0,0.00015498,2]
[400111563,1767131032538,-273.1107,0.00015626,2]
[400111564,1767131032561,-300.0,0.00015724,2]
[400111565,1767131032582,-431.87456374,0.00015724,2]
[400111588,1767131431472,-999.0,0.00015287,2]
[400111589,1767131431491,-201.0,0.00015287,2]
[400111590,1767131431501,-150.0,0.00015288,2]
[400111591,1767131431512,-150.0,0.00015288,2]
[400111592,1767131431522,-150.0,0.00015288,2]
[400111593,1767131431532,-150.0,0.00015288,2]
[400111594,1767131431542,-150.0,0.00015288,2]
[400111595,1767131431551,-49.99,0.00015288,2]
[400111596,1767131431563,-100.01,0.00015288,2]
[400111597,1767131431574,-150.0,0.00015288,2]
[400111598,1767131431584,-150.0,0.00015288,2]
[400111599,1767131431595,-127.68098567,0.00015288,2]
[400111600,1767131431607,-519.23901433,0.00015288,2]
[400111601,1767131431617,-675.51,0.00015348,2]
[400111602,1767131431627,-646.92,0.00015562,2]
[400111603,1767131431636,-150.0,0.00015627,2]
[400111604,1767131431646,-1200.0,0.00015723,2]
[400111605,1767131431656,-300.0,0.00015724,2]
[400111606,1767131431668,-297.26444975,0.00015726,2]
[400111607,1767131431680,-407.74984699,0.00015726,2]
[400111608,1767131431691,-1741.44480262,0.00015726,2]
[400111609,1767131431703,-646.62018074,0.00015726,2]
[400111610,1767131431715,-999.0,0.00015726,2]
[400111612,1767131431726,-461.17361602,0.00015726,2]
[400111614,1767131431738,-2867.30710388,0.00015726,2]
[400111617,1767131431748,-166.68,0.00015731,2]
[400111619,1767131431758,-162.12514945,0.00015732,2]
[400111621,1767131431768,-3426.79891905,0.00015732,2]
[400111623,1767131431777,-956.56880796,0.00015732,2]
[400111624,1767131431786,-613.65,0.0001579,3]
[400111626,1767131431796,-500.0,0.00015799,2]
[400111627,1767131431806,-198.49107253,0.00015799,2]
[400111628,1767131431815,-243.5629541,0.00015799,2]
[400111629,1767131431825,-229.2790146,0.00015799,2]
[400111630,1767131431835,-500.0,0.00015799,2]
[400111631,1767131431845,-323.07870325,0.00015799,2]
[400111632,1767131431859,-500.0,0.00015799,2]
[400111633,1767131431870,-500.0,0.00015799,2]
[400111634,1767131431880,-500.0,0.00015799,2]
[400111635,1767131431890,-500.0,0.00015799,2]
[400111636,1767131431900,-500.0,0.00015799,2]
[400111638,1767131431910,-500.0,0.00015799,2]
[400111640,1767131431920,-500.0,0.00015799,2]
[400111641,1767131431930,-500.0,0.00015799,2]
[400111642,1767131431940,-500.0,0.00015799,2]
[400111643,1767131431950,-500.0,0.00015799,2]
[400111644,1767131431962,-500.0,0.00015799,2]
[400111645,1767131431973,-500.0,0.00015799,2]
[400111646,1767131431983,-500.0,0.00015799,2]
[400111647,1767131431994,-500.0,0.00015799,2]
[400111648,1767131432005,-500.0,0.00015799,2]
[400111649,1767131432015,-500.0,0.00015799,2]
[400111650,1767131432027,-500.0,0.00015799,2]
[400111651,1767131432038,-500.0,0.00015799,2]
[400111652,1767131432048,-500.0,0.00015799,2]
[400111653,1767131432058,-500.0,0.00015799,2]
[400111654,1767131432071,-500.0,0.00015799,2]
[400111655,1767131432081,-503.27033065,0.00015799,2]
[400111656,1767131432091,-500.0,0.00015799,2]
[400111657,1767131432102,-500.0,0.00015799,2]
[400111658,1767131432112,-500.0,0.00015799,2]
[400111659,1767131432121,-500.0,0.00015799,2]
[400111660,1767131432131,-500.0,0.00015799,2]
[400111661,1767131432141,-500.0,0.00015799,2]
[400111662,1767131432151,-500.0,0.00015799,2]
[400111663,1767131432161,-500.0,0.00015799,2]
[400111664,1767131432172,-500.0,0.00015799,2]
[400111665,1767131432182,-500.0,0.00015799,2]
[400111666,1767131432191,-500.0,0.00015799,2]
[400111667,1767131432201,-500.0,0.00015799,2]
[400111668,1767131432211,-590.32703307,0.00015799,2]
[400111669,1767131432221,-500.0,0.00015799,2]
[400111670,1767131432231,-500.0,0.00015799,2]
[400111671,1767131432241,-500.0,0.00015799,2]
[400111672,1767131432251,-500.0,0.00015799,2]
[400111673,1767131432262,-500.0,0.00015799,2]
[400111674,1767131432272,-500.0,0.00015799,2]
[400111675,1767131432282,-500.0,0.00015799,2]
[400111676,1767131432292,-500.0,0.00015799,2]
[400111677,1767131432301,-500.0,0.00015799,2]
[400111678,1767131432312,-500.0,0.00015799,2]
[400111679,1767131432322,-500.0,0.00015799,2]
[400111680,1767131432332,-500.0,0.00015799,2]
[400111681,1767131432342,-500.0,0.00015799,2]
[400111682,1767131432352,-500.0,0.00015799,2]
[400111683,1767131432362,-22098.46040034,0.000158,2]
[400111684,1767131432374,-6815.12586,0.000158,2]
[400111685,1767131432387,-394.17718249,0.000158,2]
[400111686,1767131432399,-2430.08348929,0.000158,2]
[400111687,1767131432410,-588.05522917,0.000158,2]
[400111692,1767131437521,-330.47737862,0.000158,2]
[400111693,1767131437533,-2764.21503908,0.000158,2]
[400111694,1767131437631,-146170.8799,0.000158,2]
[400111695,1767131437642,-31713.18570998,0.000158,2]
[400111696,1767131437655,-658.47843359,0.000158,2]
[400111697,1767131437666,-13005.00999996,0.000158,2]
[400111698,1767131437682,-1069.38423229,0.000158,2]
[400111699,1767131437694,-1809.31509765,0.000158,2]
[400111700,1767131437708,-770153.15204754,0.000158,2]
[400111701,1767131437718,-249.38333955,0.00015832,2]
[400111702,1767131437728,-646.92,0.00015836,2]
[400111703,1767131437738,-5102.30663022,0.00015849,2]
[400111704,1767131437748,-3874.97124849,0.00015849,2]
[400111705,1767131437758,-280.44326248,0.00015849,2]
[400111706,1767131437768,-41.98833992,0.00015862,2]
[400111708,1767131437782,-3384.81057906,0.00015862,2]
[400111710,1767131437792,-33520.8529,0.000159,2]
[400111712,1767131437802,-162.12514941,0.00015966,2]
[400111714,1767131437812,-150.0,0.00015967,2]
[400111715,1767131437822,-3426.79891898,0.00015992,2]
[400111717,1767131437831,-6694.4507,0.00016097,2]
[400111719,1767131437842,-1000.0,0.00016098,2]
[400111721,1767131437851,-2500.0,0.00016098,2]
[400111723,1767131437862,-646.92,0.0001611,2]
[400111725,1767131437871,-3426.79891898,0.00016121,2]
[400111727,1767131437880,-150.0,0.00016137,2]
[400111729,1767131437898,-150.0,0.00016137,2]
[400111731,1767131437907,-150.0,0.00016137,2]
[400111733,1767131437917,-5350.4233825,0.0001616,2]
[400111734,1767131437927,-10469.237258,0.00016164,2]
[400111736,1767131437936,-5246.9329851,0.00016164,2]
[400111739,1767131437946,-500.0,0.00016188,2]
[400111741,1767131437961,-250.0,0.00016188,2]
[400111742,1767131437980,-500.0,0.00016188,2]
[400111744,1767131437995,-250.0,0.00016188,2]
[400111746,1767131438007,-500.0,0.00016188,2]
[400111749,1767131438017,-250.0,0.00016188,2]
[400111751,1767131438026,-500.0,0.00016188,2]
[400111753,1767131438035,-250.0,0.00016188,2]
[400111754,1767131438045,-259.84988679,0.00016188,2]
[400111756,1767131438055,-250.0,0.00016188,2]
[400111758,1767131438064,-329.21286683,0.00016188,2]
[400111761,1767131438074,-200.0,0.00016188,2]
[400111762,1767131438083,-200.0,0.00016188,2]
[400111764,1767131438093,-208.44399176,0.00016188,2]
[400111766,1767131438103,-500.0,0.00016188,2]
[400111768,1767131438112,-847.17668647,0.00016188,2]
[400111770,1767131438122,-500.0,0.00016188,2]
[400111772,1767131438131,-500.0,0.00016188,2]
[400111774,1767131438141,-500.0,0.00016188,2]
[400111776,1767131438151,-151.0,0.00016188,2]
[400111778,1767131438161,-151.0,0.00016188,2]
[400111780,1767131438171,-151.0,0.00016188,2]
[400111782,1767131438181,-151.0,0.00016188,2]
[400111784,1767131438191,-151.0,0.00016188,2]
[400111786,1767131438200,-278.42075138,0.00016197,2]
[400111788,1767131438210,-500.0,0.00016197,2]
[400111790,1767131438219,-500.0,0.00016197,2]
[400111792,1767131438229,-500.0,0.00016197,2]
[400111794,1767131438244,-500.0,0.00016197,2]
[400111796,1767131438254,-500.0,0.00016197,2]
[400111798,1767131438264,-500.0,0.00016197,2]
[400111800,1767131438274,-500.0,0.00016197,2]
[400111802,1767131438284,-507.74466054,0.00016197,2]
[400111804,1767131438294,-153.34,0.00016199,2]
[400111806,1767131438303,-162.12514941,0.00016199,2]
[400111808,1767131438313,-5000.0007,0.000162,5]
[400111810,1767131438323,-3426.79891898,0.00016251,2]
[400111812,1767131438333,-150.0,0.00016307,2]
[400111814,1767131438343,-956.56880794,0.00016316,2]
[400111816,1767131438353,-3967.289,0.00016351,2]
[400111818,1767131438362,-430.01,0.00016351,2]
[400111820,1767131438372,-3426.79891898,0.00016381,2]
[400111823,1767131438383,-646.92,0.00016384,2]
[400111825,1767131438393,-162.12514941,0.00016433,2]
[400111827,1767131438402,-3785.22,0.00016438,2]
[400111829,1767131438414,-3426.79891898,0.00016511,2]
[400111830,1767131438424,-170.39959468,0.00016623,2]
[400111832,1767131438434,-3896.0,0.00016633,2]
[400111835,1767131438446,-3426.79891898,0.0001664,2]
[400111837,1767131438457,-150.0,0.00016647,2]
[400111839,1767131438467,-646.94830604,0.00016658,2]
[400111841,1767131438477,-286.25755468,0.0001666,2]
[400111843,1767131438487,-162.12514941,0.00016666,2]
[400111845,1767131438496,-150.0,0.00016699,2]
[400111847,1767131438506,-204.22488612,0.00016699,2]
[400111849,1767131438515,-296.61363209,0.00016699,2]
[400111851,1767131438525,-150.0,0.00016699,2]
[400111852,1767131438535,-150.0,0.00016699,2]
[400111854,1767131438545,-2349.3,0.00016741,2]
[400111856,1767131438555,-150.0,0.00016754,2]
[400111857,1767131438565,-150.0,0.00016754,2]
[400111859,1767131438575,-24077.86066565,0.00016766,2]
[400111861,1767131438585,-3426.79891898,0.0001677,2]
[400111862,1767131438595,-150.0,0.00016809,2]
[400111864,1767131438604,-150.0,0.00016809,2]
[400111866,1767131438615,-1680.0,0.0001681,2]
[400111868,1767131438624,-168.0,0.00016811,2]
[400111870,1767131438634,-250.0,0.00016816,2]
[400111871,1767131438644,-300.0,0.00016816,2]
[400111873,1767131438654,-600.0,0.00016816,2]
[400111875,1767131438663,-150.0,0.00016863,2]
[400111877,1767131438673,-150.0,0.00016863,2]
[400111878,1767131438683,-500.0,0.00016873,2]
[400111880,1767131438693,-500.0,0.00016873,2]
[400111882,1767131438703,-500.0,0.00016873,2]
[400111884,1767131438713,-172.22314797,0.000169,2]
[400111885,1767131438723,-172.44696873,0.000169,2]
[400111887,1767131438733,-25946.52646814,0.000169,2]
[400111889,1767131438742,-162.12514941,0.000169,2]
[400111890,1767131438751,-7993.07388207,0.000169,2]